lending/lending_fUSD_20250913
["ID","MTS","AMOUNT","RATE_DAILY","PERIOD"]
[385333938,1757781050770,-416.42,0.00027397,2]
[385333939,1757781050779,-400.0,0.00027397,2]
[385333940,1757781050789,-507.11,0.00027397,2]
[385333941,1757781050798,-400.0,0.00027397,2]
[385333942,1757781050807,-400.0,0.00027397,2]
[385333943,1757781050817,-417.93,0.00027397,2]
[385333944,1757781050827,-803.54,0.00027397,2]
[385333945,1757781050836,-400.0,0.00027397,2]
[385333946,1757781050845,-875.02,0.00027397,2]
[385333947,1757781050855,-400.0,0.00027397,2]
[385333948,1757781050864,-400.0,0.00027397,2]
[385333949,1757781050873,-404.68,0.00027397,2]
[385333950,1757781050883,-400.0,0.00027397,2]
[385333951,1757781050892,-400.0,0.00027397,2]
[385333952,1757781050901,-533.77,0.00027397,2]
[385333953,1757781050911,-500.0,0.00027397,2]
[385333954,1757781050921,-400.0,0.00027397,2]
[385333955,1757781050930,-634.03,0.00027397,2]
[385333956,1757781050939,-483.33,0.00027397,2]
[385333957,1757781050950,-500.0,0.00027397,2]
[385333958,1757781050960,-400.0,0.00027397,2]
[385333959,1757781050969,-500.0,0.00027397,2]
[385333960,1757781050979,-604.48594262,0.00027397,2]
[385333961,1757781050988,-151.0,0.00027397,7]
[385333962,1757781050998,-400.0,0.00027397,2]
[385333963,1757781051008,-151.0,0.00027397,7]
[385333964,1757781051018,-151.0,0.00027397,7]
[385333965,1757781051027,-151.0,0.00027397,7]
[385333966,1757781051036,-517.02,0.00027397,2]
[385333967,1757781051045,-423.77,0.00027397,2]
[385333968,1757781051055,-151.0,0.00027397,7]
[385333969,1757781051064,-151.0,0.00027397,7]
[385333970,1757781051074,-793.54,0.00027397,2]
[385333971,1757781051084,-151.0,0.00027397,7]
[385333972,1757781051094,-151.0,0.00027397,7]
[385333973,1757781051103,-151.0,0.00027397,7]
[385333974,1757781051113,-151.0,0.00027397,7]
[385333975,1757781051122,-400.0,0.00027397,2]
[385333976,1757781051131,-151.0,0.00027397,7]
[385333977,1757781051141,-400.0,0.00027397,2]
[385333978,1757781051150,-151.0,0.00027397,7]
[385333979,1757781051159,-151.0,0.00027397,7]
[385333980,1757781051169,-151.0,0.00027397,7]
[385333981,1757781051178,-400.0,0.00027397,2]
[385333982,1757781051187,-400.0,0.00027397,2]
[385333983,1757781051199,-400.0,0.00027397,2]
[385333984,1757781051209,-400.0,0.00027397,2]
[385333985,1757781051218,-400.0,0.00027397,2]
[385333986,1757781051228,-1022.9,0.00027397,2]
[385333987,1757781051238,-400.0,0.00027397,2]
[385333988,1757781051249,-400.0,0.00027397,2]
[385333989,1757781051258,-151.0,0.00027397,7]
[385333990,1757781051267,-162.814312,0.00027397,7]
[385333991,1757781051276,-690.85,0.00027397,2]
[385333992,1757781051285,-754.76,0.00027397,2]
[385333993,1757781051295,-400.0,0.00027397,2]
[385333994,1757781051304,-400.0,0.00027397,2]
[385333995,1757781051314,-400.0,0.00027397,2]
[385333996,1757781051323,-400.0,0.00027397,2]
[385333997,1757781051332,-414.27547822,0.00027397,2]
[385333998,1757781051341,-400.0,0.00027397,2]
[385333999,1757781051350,-400.0,0.00027397,2]
[385334000,1757781051360,-639.66,0.00027397,2]
[385334001,1757781051369,-400.0,0.00027397,2]
[385334002,1757781051378,-539.76,0.00027397,2]
[385334003,1757781051387,-683.07,0.00027397,2]
[385334004,1757781051397,-400.0,0.00027397,2]
[385334005,1757781051406,-151.0,0.00027397,7]
[385334006,1757781051415,-400.0,0.00027397,2]
[385334007,1757781051428,-151.0,0.00027397,7]
[385334008,1757781051437,-151.0,0.00027397,7]
[385334009,1757781051447,-866.17,0.00027397,2]
[385334010,1757781051458,-400.0,0.00027397,2]
[385334011,1757781051469,-151.0,0.00027397,7]
[385334012,1757781051478,-400.0,0.00027397,2]
[385334013,1757781051487,-838.98,0.00027397,2]
[385334014,1757781051496,-860.9,0.00027397,2]
[385334015,1757781051506,-151.0,0.00027397,7]
[385334016,1757781051514,-151.0,0.00027397,7]
[385334017,1757781051523,-151.0,0.00027397,7]
[385334018,1757781051532,-400.0,0.00027397,2]
[385334019,1757781051541,-225.46206,0.00027397,7]
[385334020,1757781051550,-400.0,0.00027397,2]
[385334021,1757781051559,-400.0,0.00027397,2]
[385334022,1757781051567,-400.0,0.00027397,2]
[385334023,1757781051577,-852.92,0.00027397,2]
[385334024,1757781051586,-400.0,0.00027397,2]
[385334025,1757781051595,-400.0,0.00027397,2]
[385334026,1757781051604,-727.26,0.00027397,2]
[385334027,1757781051613,-151.0,0.00027397,7]
[385334028,1757781051622,-400.0,0.00027397,2]
[385334029,1757781051631,-151.0,0.00027397,7]
[385334030,1757781051640,-151.0,0.00027397,7]
[385334031,1757781051649,-151.0,0.00027397,7]
[385334032,1757781051658,-400.0,0.00027397,2]
[385334033,1757781051667,-151.0,0.00027397,7]
[385334034,1757781051676,-287.934545,0.00027397,7]
[385334035,1757781051685,-954.39,0.00027397,2]
[385334036,1757781051695,-681.84,0.00027397,2]
[385334037,1757781051706,-254.837073,0.00027397,7]
[385334038,1757781051715,-849.79,0.00027397,2]
[385334039,1757781051724,-400.0,0.00027397,2]
[385334040,1757781051734,-150.0,0.00027397,2]
[385334041,1757781051743,-151.0,0.00027397,7]
[385334042,1757781051752,-400.0,0.00027397,2]
[385334043,1757781051762,-151.0,0.00027397,7]
[385334044,1757781051771,-151.0,0.00027397,7]
[385334045,1757781051780,-151.0,0.00027397,7]
[385334046,1757781051789,-151.0,0.00027397,7]
[385334047,1757781051799,-151.0,0.00027397,7]
[385334048,1757781051808,-151.0,0.00027397,7]
[385334049,1757781051818,-600.16,0.00027397,2]
[385334050,1757781051827,-400.0,0.00027397,2]
[385334051,1757781051837,-728.86,0.00027397,2]
[385334052,1757781051846,-400.0,0.00027397,2]
[385334053,1757781051855,-400.0,0.00027397,2]
[385334054,1757781051865,-400.0,0.00027397,2]
[385334055,1757781051874,-400.0,0.00027397,2]
[385334056,1757781051884,-400.0,0.00027397,2]
[385334057,1757781051893,-561.14,0.00027397,2]
[385334058,1757781051904,-784.87,0.00027397,2]
[385334059,1757781051915,-400.0,0.00027397,2]
[385334060,1757781051924,-400.0,0.00027397,2]
[385334061,1757781051934,-400.0,0.00027397,2]
[385334062,1757781051943,-400.0,0.00027397,2]
[385334063,1757781051953,-400.0,0.00027397,2]
[385334064,1757781051962,-400.0,0.00027397,2]
[385334065,1757781051971,-151.0,0.00027397,7]
[385334066,1757781051980,-773.29,0.00027397,2]
[385334067,1757781051989,-151.0,0.00027397,7]
[385334068,1757781051998,-276.179815,0.00027397,7]
[385334069,1757781052007,-457.97,0.00027397,2]
[385334070,1757781052017,-897.96,0.00027397,2]
[385334071,1757781052026,-400.0,0.00027397,2]
[385334072,1757781052035,-400.0,0.00027397,2]
[385334073,1757781052044,-400.0,0.00027397,2]
[385334074,1757781052053,-400.0,0.00027397,2]
[385334075,1757781052062,-286.44027466,0.00027397,2]
[385334076,1757781052072,-334.04,0.00027397,2]
[385334077,1757781052081,-895.01,0.00027397,2]
[385334078,1757781052090,-836.07,0.00027397,2]
[385334079,1757781052099,-400.0,0.00027397,2]
[385334080,1757781052108,-400.0,0.00027397,2]
[385334081,1757781052117,-400.0,0.00027397,2]
[385334082,1757781052126,-400.0,0.00027397,2]
[385334083,1757781052136,-400.0,0.00027397,2]
[385334084,1757781052146,-416.05504075,0.00027397,2]
[385334085,1757781052156,-400.0,0.00027397,2]
[385334086,1757781052165,-400.0,0.00027397,2]
[385334087,1757781052174,-400.0,0.00027397,2]
[385334088,1757781052183,-400.0,0.00027397,2]
[385334089,1757781052193,-971.68,0.00027397,2]
[385334090,1757781052205,-400.0,0.00027397,2]
[385334091,1757781052214,-400.0,0.00027397,2]
[385334092,1757781052223,-400.0,0.00027397,2]
[385334093,1757781052234,-424.78,0.00027397,2]
[385334094,1757781052244,-2843.74643595,0.00027397,2]
[385334095,1757781052915,-338.80785165,0.00027397,2]
[385334096,1757781052925,-612.02,0.00027397,2]
[385334097,1757781052935,-400.0,0.00027397,2]
[385334098,1757781052945,-547.9,0.00027397,2]
[385334099,1757781052955,-400.0,0.00027397,2]
[385334100,1757781052966,-400.0,0.00027397,2]
[385334101,1757781052982,-805.28,0.00027397,2]
[385334102,1757781052991,-753.85,0.00027397,2]
[385334103,1757781053000,-400.0,0.00027397,2]
[385334104,1757781053252,-400.0,0.00027397,2]
[385334105,1757781053263,-1022.5,0.00027397,2]
[385334106,1757781053272,-500.0,0.00027397,2]
[385334107,1757781053282,-500.0,0.00027397,2]
[385334108,1757781053292,-400.0,0.00027397,2]
[385334109,1757781053301,-51.2116998,0.00027397,2]
[385334110,1757781053315,-448.7883002,0.00027397,2]
[385334111,1757781053325,-500.0,0.00027397,2]
[385334112,1757781053335,-401.22975962,0.00027397,2]
[385334113,1757781053346,-400.0,0.00027397,2]
[385334114,1757781053359,-771.92,0.00027397,2]
[385334115,1757781053369,-400.0,0.00027397,2]
[385334116,1757781053378,-151.0,0.00027397,7]
[385334117,1757781053387,-151.0,0.00027397,7]
[385334118,1757781053396,-210.81655,0.00027397,7]
[385334119,1757781053406,-959.08,0.00027397,2]
[385334120,1757781053416,-400.0,0.00027397,2]
[385334121,1757781053428,-407.19069941,0.00027397,2]
[385334122,1757781053438,-151.0,0.00027397,7]
[385334123,1757781053447,-634.27,0.00027397,2]
[385334124,1757781053459,-700.96,0.00027397,2]
[385334125,1757781053468,-505.69,0.00027397,2]
[385334126,1757781053478,-500.0,0.00027397,2]
[385334127,1757781053487,-400.0,0.00027397,2]
[385334128,1757781053498,-400.0,0.00027397,2]
[385334129,1757781053509,-400.0,0.00027397,2]
[385334130,1757781053519,-400.0,0.00027397,2]
[385334131,1757781053528,-708.24,0.00027397,2]
[385334132,1757781053538,-400.0,0.00027397,2]
[385334133,1757781053547,-154.41607367,0.00027397,2]
[385334134,1757781053557,-400.0,0.00027397,2]
[385334135,1757781053566,-324.03544176,0.00027397,2]
[385334136,1757781054582,-827.75,0.00026449,2]
[385334137,1757781054592,-21.19456458,0.00027397,2]
[385334138,1757781054607,-123.45999366,0.00027397,2]
[385334139,1757781054617,-400.0,0.00027397,2]
[385334140,1757781054629,-400.0,0.00027397,2]
[385334141,1757781054638,-400.0,0.00027397,2]
[385334142,1757781054648,-400.0,0.00027397,2]
[385334143,1757781054657,-400.0,0.00027397,2]
[385334144,1757781054667,-653.94,0.00027397,2]
[385334145,1757781054676,-271.60000634,0.00027397,2]
[385334146,1757781054693,-1358.93999366,0.00027397,2]
[385334147,1757781054703,-961.03,0.00027397,2]
[385334148,1757781054712,-622.13,0.00027397,2]
[385334149,1757781054722,-528.80132162,0.00027397,2]
[385334150,1757781054731,-400.0,0.00027397,2]
[385334151,1757781054740,-151.0,0.00027397,7]
[385334152,1757781054750,-400.0,0.00027397,2]
[385334153,1757781054759,-151.0,0.00027397,7]
[385334154,1757781054768,-563.23,0.00027397,2]
[385334155,1757781054777,-151.0,0.00027397,7]
[385334156,1757781054787,-151.0,0.00027397,7]
[385334157,1757781054796,-829.79,0.00027397,2]
[385334158,1757781054806,-151.0,0.00027397,7]
[385334159,1757781054815,-401.0655583,0.00027397,2]
[385334160,1757781054824,-220.96872342,0.00027397,2]
[385334161,1757781054837,-181.79600747,0.00027397,2]
[385334162,1757781054847,-400.0,0.00027397,2]
[385334163,1757781054856,-200.0,0.00027397,2]
[385334164,1757781054866,-400.0,0.00027397,2]
[385334165,1757781054875,-500.0,0.00027397,2]
[385334166,1757781054885,-402.72861325,0.00027397,2]
[385334167,1757781054895,-500.0,0.00027397,2]
[385334168,1757781054905,-500.0,0.00027397,2]
[385334169,1757781054914,-500.0,0.00027397,2]
[385334170,1757781054923,-786.73,0.00027397,2]
[385334171,1757781054933,-506.03490048,0.00027397,2]
[385334172,1757781054942,-404.55953688,0.00027397,2]
[385334173,1757781054952,-1087.85,0.00027397,2]
[385334174,1757781054962,-400.0,0.00027397,2]
[385334175,1757781054972,-828.1,0.00027397,2]
[385334176,1757781054981,-400.0,0.00027397,2]
[385334177,1757781054991,-400.0,0.00027397,2]
[385334178,1757781055000,-500.0,0.00027397,2]
[385334179,1757781055011,-400.0,0.00027397,2]
[385334180,1757781055020,-500.0,0.00027397,2]
[385334181,1757781055029,-675.19,0.00027397,2]
[385334182,1757781055039,-500.0,0.00027397,2]
[385334183,1757781055049,-400.0,0.00027397,2]
[385334184,1757781055059,-500.0,0.00027397,2]
[385334185,1757781055068,-730.64,0.00027397,2]
[385334186,1757781055078,-151.0,0.00027397,7]
[385334187,1757781055087,-500.0,0.00027397,2]
[385334188,1757781055096,-151.0,0.00027397,7]
[385334189,1757781055106,-258.776744,0.00027397,7]
[385334190,1757781055115,-258.776744,0.00027397,7]
[385334191,1757781055124,-151.0,0.00027397,7]
[385334192,1757781055133,-258.776744,0.00027397,7]
[385334193,1757781055143,-400.0,0.00027397,2]
[385334194,1757781055152,-258.776744,0.00027397,7]
[385334195,1757781055161,-258.776744,0.00027397,7]
[385334196,1757781055171,-258.776744,0.00027397,7]
[385334197,1757781055180,-767.05,0.00027397,2]
[385334198,1757781055189,-258.776744,0.00027397,7]
[385334199,1757781055198,-813.78,0.00027397,2]
[385334200,1757781055208,-151.0,0.00027397,7]
[385334201,1757781055217,-258.776744,0.00027397,7]
[385334202,1757781055227,-151.0,0.00027397,7]
[385334203,1757781055236,-258.776744,0.00027397,7]
[385334204,1757781055245,-258.776744,0.00027397,7]
[385334205,1757781055254,-400.0,0.00027397,2]
[385334206,1757781055264,-258.776744,0.00027397,7]
[385334207,1757781055273,-465.07,0.00027397,2]
[385334208,1757781055282,-400.0,0.00027397,2]
[385334209,1757781055292,-258.776744,0.00027397,7]
[385334210,1757781055301,-477.12,0.00027397,2]
[385334211,1757781055310,-258.776744,0.00027397,7]
[385334212,1757781055319,-258.776744,0.00027397,7]
[385334213,1757781055328,-258.776744,0.00027397,7]
[385334214,1757781055337,-258.776752,0.00027397,7]
[385334215,1757781055346,-400.0,0.00027397,2]
[385334216,1757781055356,-1204.81,0.00027397,2]
[385334217,1757781055365,-400.0,0.00027397,2]
[385334218,1757781055375,-400.0,0.00027397,2]
[385334219,1757781055386,-400.0,0.00027397,2]
[385334220,1757781055396,-672.74,0.00027397,2]
[385334221,1757781055406,-400.0,0.00027397,2]
[385334222,1757781055416,-400.0,0.00027397,2]
[385334223,1757781055429,-400.0,0.00027397,2]
[385334224,1757781055439,-296.87943176,0.00027397,2]
[385334225,1757781061913,176.16075603,0.00028161,120]
[385334226,1757781062077,177.56,0.00029385,30]
[385334227,1757781063803,177.56,0.00030383,30]
[385334228,1757781088391,273.448,0.00027396,16]
[385334229,1757781232445,163.09045556,0.00029099,15]
[385334230,1757781237505,163.09045556,0.00029549,15]
[385334231,1757781239184,163.09045556,0.00029999,15]
[385334232,1757781250706,4005.28768968,0.000309,30]
[385334239,1757781365077,1713.0,0.00031,120]
[385334242,1757781540508,163.09045557,0.00029459,15]
[385334244,1757781569506,307.27,0.00027425,30]
[385334245,1757781602229,250.0,0.00015,2]
[385334246,1757781652743,184.0,0.00027671,14]
[385334247,1757781663446,500.0,0.00027397,14]
[385334248,1757781688332,218.759,0.00027287,16]
[385334249,1757781730318,1000.0,0.00031,35]
[385334251,1757781832326,163.09045557,0.00029094,15]
[385334252,1757781837358,163.09045557,0.00029997,15]
[385334253,1757781839868,585.3279015,0.00031,120]
[385334256,1757781972324,347.38,0.00012582,2]
[385334257,1757781972474,347.38,0.00013244,2]
[385334258,1757781972677,347.38,0.00013907,2]
[385334259,1757781972904,347.38,0.00014569,2]
[385334260,1757781973336,347.38,0.00015231,2]
[385334261,1757781973573,347.38,0.00015893,2]
[385334262,1757781973770,347.38,0.00016555,2]
[385334263,1757781974033,347.38,0.00017218,2]
[385334264,1757781974241,347.38,0.0001788,2]
[385334265,1757781974448,347.38,0.00018542,2]
[385334266,1757781974659,347.38,0.00019204,2]
[385334267,1757781974878,347.38,0.00019867,2]
[385334268,1757782042867,5100.0,0.0002739,19]
[385334269,1757782052881,5100.0,0.0002739,20]
[385334270,1757782063821,5100.0,0.0002739,21]
[385334271,1757782108199,163.09045557,0.00029094,15]
[385334292,1757782231427,-347.38,0.00020529,2]
[385334293,1757782231437,-236.19533391,0.00021091,2]
[385334294,1757782231481,-501.63312662,0.00021091,2]
[385334295,1757782231491,-347.38,0.00021191,2]
[385334296,1757782231503,-347.38,0.00021853,2]
[385334297,1757782231513,-347.38,0.00022515,2]
[385334298,1757782231523,-292.03745316,0.00023078,2]
[385334299,1757782231532,-347.38,0.00023178,2]
[385334300,1757782231540,-151.0,0.00023259,2]
[385334301,1757782231550,-151.6,0.00023259,2]
[385334302,1757782231559,-152.91,0.00023359,2]
[385334303,1757782231569,-151.85,0.00023359,2]
[385334304,1757782231579,-152.6,0.00023359,2]
[385334305,1757782231588,-150.14,0.00023359,2]
[385334306,1757782231598,-151.14,0.00023359,2]
[385334307,1757782231607,-151.0,0.00023547,2]
[385334308,1757782231616,-151.0,0.00023551,2]
[385334309,1757782231627,-177.86757867,0.00023807,2]
[385334310,1757782231636,-347.38,0.0002384,2]
[385334311,1757782231646,-166.94,0.000242,2]
[385334312,1757782231655,-347.38,0.00024502,2]
[385334313,1757782231665,-257.3801021,0.00024618,2]
[385334314,1757782231675,-188.79,0.00024658,2]
[385334315,1757782231905,-727.83173945,0.00024723,2]
[385334316,1757782232027,-1081.77826055,0.00024723,2]
[385334317,1757782232036,-1200.0,0.0002475,2]
[385334318,1757782232046,-2456.85,0.00024751,2]
[385334319,1757782232056,-2083.19,0.00024764,2]
[385334320,1757782232065,-412.58,0.00024771,2]
[385334321,1757782232075,-200.0,0.00024879,2]
[385334322,1757782232084,-250.0,0.00024879,2]
[385334323,1757782232093,-299.0,0.00024898,2]
[385334324,1757782232102,-238.0,0.00024899,2]
[385334325,1757782232112,-4890.74369662,0.000249,2]
[385334326,1757782232121,-1150.0,0.00024914,2]
[385334327,1757782232131,-445.83,0.00024914,2]
[385334328,1757782232140,-161.5,0.00025,2]
[385334329,1757782232150,-174.3036435,0.00025126,2]
[385334330,1757782232159,-347.38,0.00025164,2]
[385334331,1757782232169,-150.0,0.000252,2]
[385334332,1757782232178,-192.0,0.000252,2]
[385334333,1757782232187,-321.34040661,0.000252,2]
[385334334,1757782232196,-150.0,0.00025212,2]
[385334335,1757782232206,-247.03,0.00025253,2]
[385334336,1757782232215,-1852.42,0.00025254,2]
[385334337,1757782232224,-759.6,0.00025254,2]
[385334338,1757782232234,-151.0,0.00025255,2]
[385334339,1757782232243,-151.0,0.00025255,2]
[385334340,1757782232252,-151.0,0.00025255,2]
[385334341,1757782232262,-151.0,0.00025255,2]
[385334342,1757782232271,-151.0,0.00025255,2]
[385334343,1757782232281,-151.0,0.00025255,2]
[385334344,1757782232290,-151.0,0.00025255,2]
[385334345,1757782232300,-151.0,0.00025255,2]
[385334346,1757782232309,-151.0,0.00025255,2]
[385334347,1757782232318,-151.0,0.00025255,2]
[385334348,1757782232328,-151.0,0.00025255,2]
[385334349,1757782232339,-151.0,0.00025255,2]
[385334350,1757782232349,-151.0,0.00025255,2]
[385334351,1757782232359,-151.0,0.00025255,2]
[385334352,1757782232369,-266.0,0.00025255,2]
[385334353,1757782232379,-5000.0,0.00025271,2]
[385334354,1757782232388,-677.78,0.00025278,2]
[385334355,1757782232398,-1225.84,0.00025301,2]
[385334356,1757782232407,-150.0,0.00025301,7]
[385334357,1757782232417,-1157.14,0.00025306,2]
[385334358,1757782232427,-1000.0,0.00025332,2]
[385334359,1757782232436,-666.0,0.00025372,3]
[385334360,1757782232446,-200.0,0.00025392,2]
[385334361,1757782232455,-400.0,0.0002549,2]
[385334362,1757782232466,-3106.07,0.00025519,2]
[385334363,1757782232475,-11513.7893614,0.00025521,2]
[385334364,1757782232488,-16969.4206386,0.00025521,2]
[385334365,1757782232497,-1000.01,0.00026,2]
[385334366,1757782232507,-322.6107,0.00026026,2]
[385334367,1757782232516,-160.0,0.00026026,2]
[385334368,1757782232525,-721.12765535,0.00026026,2]
[385334369,1757782232536,-250.0,0.00026026,2]
[385334370,1757782232548,-250.0,0.00026026,2]
[385334371,1757782232560,-250.0,0.00026026,2]
[385334372,1757782232570,-250.0,0.00026026,2]
[385334373,1757782232579,-250.0,0.00026026,2]
[385334374,1757782232588,-250.0,0.00026026,2]
[385334375,1757782232598,-250.0,0.00026026,2]
[385334376,1757782232607,-277.35679052,0.00026026,2]
[385334377,1757782232616,-250.0,0.00026026,2]
[385334378,1757782232625,-250.0,0.00026026,2]
[385334379,1757782232634,-250.0,0.00026026,2]
[385334380,1757782232643,-250.0,0.00026026,2]
[385334381,1757782232653,-500.0,0.00026026,2]
[385334382,1757782232662,-500.0,0.00026026,2]
[385334383,1757782232671,-151.0,0.00026026,2]
[385334384,1757782232680,-162.16,0.00026065,2]
[385334385,1757782232689,-162.2,0.00026206,2]
[385334386,1757782232698,-677.78,0.00026226,2]
[385334387,1757782232707,-459.0,0.000265,2]
[385334388,1757782232716,-759.6,0.00026516,2]
[385334389,1757782232725,-500.0,0.000267,9]
[385334390,1757782232734,-1100.0,0.000268,9]
[385334391,1757782232743,-1600.0,0.000269,9]
[385334392,1757782232753,-1680.0,0.00026941,2]
[385334393,1757782232762,-184.0,0.00027,7]
[385334394,1757782232771,-4440.30530451,0.00027097,2]
[385334395,1757782232782,-2535.72949549,0.00027097,2]
[385334396,1757782232791,-1402.95,0.00027097,2]
[385334397,1757782232800,-232.0563,0.00027151,2]
[385334398,1757782232809,-277.0614,0.00027151,2]
[385334399,1757782232818,-677.78,0.00027174,2]
[385334400,1757782232827,-200.0,0.00027178,2]
[385334401,1757782232837,-664.1759,0.00027187,2]
[385334402,1757782232847,-2120.5129,0.00027187,2]
[385334403,1757782232856,-7141.8025,0.00027197,2]
[385334404,1757782232865,-1016.0,0.000272,2]
[385334405,1757782232874,-4477.5265706,0.00027251,2]
[385334406,1757782232886,-980.46419492,0.00027251,2]
[385334407,1757782232920,-2951.793793,0.00027251,2]
[385334411,1757782237366,-500.0,0.00025519,2]
[385334412,1757782237376,-500.0,0.00025519,2]
[385334413,1757782237386,-355.75998195,0.00025519,2]
[385334414,1757782237398,-144.24001805,0.00025519,2]
[385334415,1757782237407,-500.0,0.00025519,2]
[385334416,1757782237416,-500.0,0.00025519,2]
[385334417,1757782237427,-500.0,0.00025519,2]
[385334418,1757782237437,-500.0,0.00025519,2]
[385334419,1757782237446,-342.35572449,0.00025519,2]
[385334420,1757782237455,-500.0,0.00025519,2]
[385334421,1757782237464,-98.96524023,0.00025519,2]
[385334422,1757782237477,-401.03475977,0.00025519,2]
[385334423,1757782237486,-500.0,0.00025519,2]
[385334424,1757782237495,-500.0,0.00025519,2]
[385334425,1757782237504,-479.35058114,0.00027251,2]
[385334426,1757782237524,-455.91241919,0.00027251,2]
[385334427,1757782237555,-15022.76623611,0.00027251,2]
[385334428,1757782237565,-1000.0,0.00027287,2]
[385334429,1757782237575,-2500.0,0.00027287,2]
[385334430,1757782237584,-2976.81525662,0.00027287,2]
[385334431,1757782237595,-1015.344,0.00027287,2]
[385334432,1757782237606,-1007.84074338,0.00027287,2]
[385334433,1757782237623,-129.7373195,0.00027287,2]
[385334434,1757782237649,-5630.93187757,0.00027287,2]
[385334435,1757782237670,-163.09045558,0.00027287,2]
[385334436,1757782237689,-1000.0,0.00027297,2]
[385334437,1757782237704,-500.0,0.00027299,2]
[385334438,1757782237723,-430.04411629,0.00027299,2]
[385334439,1757782237744,-351.30610363,0.00027299,2]
[385334441,1757782237762,-500.0,0.00027299,2]
[385334443,1757782237781,-231.82140649,0.00027299,2]
[385334444,1757782237800,-35137.08368964,0.000273,2]
[385334445,1757782237819,-691.14,0.00027367,2]
[385334446,1757782237834,-500.0,0.00027373,2]
[385334447,1757782237848,-500.0,0.00027373,2]
[385334448,1757782237866,-500.0,0.00027373,2]
[385334449,1757782237878,-209.16197214,0.00027373,2]
[385334450,1757782237898,-500.0,0.00027373,2]
[385334451,1757782237914,-500.0,0.00027373,2]
[385334452,1757782237933,-627.29393232,0.00027373,2]
[385334455,1757782237948,-500.0,0.00027373,2]
[385334457,1757782237963,-204.91175414,0.00027373,2]
[385334460,1757782237980,-500.0,0.00027373,2]
[385334462,1757782237995,-150.0,0.00027373,2]
[385334465,1757782238010,-150.99273905,0.00027373,2]
[385334468,1757782238024,-150.0,0.00027373,2]
[385334470,1757782238039,-282.58293069,0.00027373,2]
[385334473,1757782238054,-150.0,0.00027373,2]
[385334476,1757782238069,-150.0,0.00027373,2]
[385334478,1757782238084,-150.0,0.00027373,2]
[385334481,1757782238099,-150.0,0.00027373,2]
[385334483,1757782238114,-150.0,0.00027373,2]
[385334486,1757782238129,-150.0,0.00027373,2]
[385334488,1757782238144,-150.0,0.00027373,2]
[385334491,1757782238160,-151.17386151,0.00027373,2]
[385334493,1757782238174,-500.0,0.00027373,2]
[385334496,1757782238189,-150.0,0.00027373,2]
[385334498,1757782238204,-150.0,0.00027373,2]
[385334501,1757782238219,-150.0,0.00027373,2]
[385334504,1757782238235,-150.0,0.00027373,2]
[385334506,1757782238249,-500.0,0.00027373,2]
[385334509,1757782238264,-150.0,0.00027373,2]